fUSD/lending_fUSD_20250513
["ID","MTS","AMOUNT","RATE_DAILY","PERIOD"]
[360975172,1747175438731,-389.79568146,0.00010969,2]
[360975173,1747175438740,-400.0,0.00010969,2]
[360975174,1747175438750,-1038.68,0.00010969,2]
[360975175,1747175438759,-473.45,0.00010969,2]
[360975176,1747175438769,-400.0,0.00010969,2]
[360975177,1747175438778,-400.0,0.00010969,2]
[360975178,1747175438787,-89.56029388,0.00010969,2]
[360975185,1747175441106,-126.99829709,0.00010969,2]
[360975186,1747175441139,-34.37810217,0.00010969,2]
[360975187,1747175441149,-400.0,0.00010969,2]
[360975188,1747175441158,-242.86689782,0.00010969,2]
[360975189,1747175441225,-610.00310218,0.00010969,2]
[360975190,1747175441236,-400.0,0.00010969,2]
[360975191,1747175441246,-535.41,0.00010969,2]
[360975192,1747175441255,-441.61,0.00010969,2]
[360975193,1747175441265,-1608.91,0.00010969,2]
[360975194,1747175441275,-663.16,0.00010969,2]
[360975195,1747175441286,-472.71,0.00010969,2]
[360975196,1747175441296,-1013.29,0.00010969,2]
[360975197,1747175441305,-400.0,0.00010969,2]
[360975198,1747175441315,-400.0,0.00010969,2]
[360975199,1747175441324,-400.0,0.00010969,2]
[360975200,1747175441333,-400.0,0.00010969,2]
[360975201,1747175441343,-576.55,0.00010969,2]
[360975202,1747175441352,-898.28,0.00010969,2]
[360975203,1747175441362,-400.85,0.00010969,2]
[360975204,1747175441371,-583.77,0.00010969,2]
[360975205,1747175441381,-400.0,0.00010969,2]
[360975206,1747175441391,-400.0,0.00010969,2]
[360975207,1747175441400,-4833.89,0.00010969,2]
[360975208,1747175441410,-844.01,0.00010969,2]
[360975209,1747175441419,-400.0,0.00010969,2]
[360975210,1747175441430,-400.0,0.00010969,2]
[360975211,1747175441440,-400.0,0.00010969,2]
[360975212,1747175441450,-1007.6,0.00010969,2]
[360975213,1747175441459,-400.0,0.00010969,2]
[360975214,1747175441468,-535.43,0.00010969,2]
[360975215,1747175441478,-410.86,0.00010969,2]
[360975216,1747175441487,-400.0,0.00010969,2]
[360975217,1747175441497,-158.81663333,0.00010969,2]
[360975218,1747175441506,-117047.35098273,0.0001097,2]
[360975249,1747175446052,-668.06,0.00010969,2]
[360975250,1747175446063,-518.708785,0.00010969,2]
[360975251,1747175446219,-1201.191215,0.00010969,2]
[360975252,1747175446229,-2699.46348487,0.0001097,2]
[360975253,1747175446315,-6234.9597228,0.0001097,2]
[360975254,1747175446326,-3690.48875578,0.0001097,2]
[360975690,1747175468353,11361.43132615,0.000255,120]
[360975691,1747175805170,137.33678539,9.893e-05,2]
[360975692,1747175805193,104.43121461,9.893e-05,2]
[360975693,1747175939616,403.11,9.898e-05,2]
[360975694,1747175950828,-155.86,9.939e-05,2]
[360975695,1747175952848,-215.81624742,9.939e-05,2]
[360975696,1747175956431,-167.01721651,9.939e-05,2]
[360975697,1747175959507,-212.93746626,9.939e-05,2]
[360975698,1747176055807,1000.0,9.901e-05,2]
[360975699,1747176115081,8492.45878539,9.88e-05,2]
[360975700,1747176115106,10000.0,9.88e-05,2]
[360975701,1747176115128,5407.54121461,9.88e-05,2]
[360975702,1747176153801,1091.32,9.801e-05,2]
[360975703,1747176154204,-150.0,9.937e-05,2]
[360975704,1747176154253,-16.33067375,9.937e-05,2]
[360975705,1747176156018,-317.41282059,9.937e-05,2]
[360975706,1747176158640,-166.25650566,9.937e-05,2]
[360975707,1747176158686,-4.27,9.937e-05,2]
[360975708,1747176183015,519.1,9.801e-05,2]
[360975709,1747176208719,244.0,9.799e-05,2]
[360975710,1747176233973,700.44690089,0.00010962,120]
[360975711,1747176244106,-157.1270909,9.937e-05,2]
[360975712,1747176245735,-42.8729091,9.937e-05,2]
[360975713,1747176246828,162.44,9.842e-05,2]
[360975714,1747176282539,-189.86136512,9.936e-05,2]
[360975715,1747176284702,-244.2573788,9.936e-05,2]
[360975716,1747176287483,-65.88125608,9.936e-05,2]
[360975717,1747176287521,-94.90888797,9.936e-05,2]
[360975718,1747176289698,-195.8507542,9.936e-05,2]
[360975719,1747176291326,-197.42487187,9.936e-05,2]
[360975720,1747176392855,-163.81548596,9.934e-05,2]
[360975721,1747176395176,-189.46593092,9.934e-05,2]
[360975722,1747176396604,250.0,9.846e-05,2]
[360975723,1747176397424,-146.71858312,9.934e-05,2]
[360975724,1747176397470,-160.0152115,9.934e-05,2]
[360975729,1747176604036,-174.49,9.923e-05,2]
[360975730,1747176604073,-25.51,9.931e-05,2]
[360975735,1747176612209,332.2,9.738e-05,2]
[360975736,1747176612689,-1174.49,9.931e-05,2]
[360975737,1747176612889,-150.0,9.932e-05,2]
[360975738,1747176612922,-500.0,9.932e-05,2]
[360975739,1747176612953,-500.0,9.932e-05,2]
[360975740,1747176612982,-500.0,9.932e-05,2]
[360975741,1747176613011,-500.0,9.932e-05,2]
[360975742,1747176613040,-500.0,9.932e-05,2]
[360975743,1747176613069,-500.0,9.932e-05,2]
[360975744,1747176613100,-500.0,9.932e-05,2]
[360975745,1747176613129,-500.0,9.932e-05,2]
[360975746,1747176613157,-500.0,9.932e-05,2]
[360975747,1747176613189,-500.0,9.932e-05,2]
[360975748,1747176613217,-500.0,9.932e-05,2]
[360975749,1747176613247,-500.0,9.932e-05,2]
[360975750,1747176613277,-500.0,9.932e-05,2]
[360975751,1747176613308,-500.0,9.932e-05,2]
[360975752,1747176613342,-500.0,9.932e-05,2]
[360975753,1747176613372,-500.0,9.932e-05,2]
[360975754,1747176613406,-500.0,9.932e-05,2]
[360975755,1747176613439,-175.51,9.932e-05,2]
[360975756,1747176613781,-324.49,9.932e-05,2]
[360975757,1747176613812,-500.0,9.932e-05,2]
[360975758,1747176613843,-500.0,9.932e-05,2]
[360975759,1747176613873,-500.0,9.932e-05,2]
[360975760,1747176613903,-500.0,9.932e-05,2]
[360975761,1747176613933,-500.0,9.932e-05,2]
[360975762,1747176613964,-500.0,9.932e-05,2]
[360975763,1747176613994,-500.0,9.932e-05,2]
[360975764,1747176614032,-500.0,9.932e-05,2]
[360975765,1747176614066,-500.0,9.932e-05,2]
[360975766,1747176614099,-500.0,9.932e-05,2]
[360975767,1747176614129,-500.0,9.932e-05,2]
[360975768,1747176614171,-500.0,9.932e-05,2]
[360975769,1747176614215,-500.0,9.932e-05,2]
[360975770,1747176614261,-500.0,9.932e-05,2]
[360975771,1747176614308,-500.0,9.932e-05,2]
[360975772,1747176614355,-500.0,9.932e-05,2]
[360975773,1747176614402,-500.0,9.932e-05,2]
[360975774,1747176614448,-500.0,9.932e-05,2]
[360975775,1747176614489,-500.0,9.932e-05,2]
[360975776,1747176614531,-175.51,9.932e-05,2]
[360975777,1747176614773,-228.40527033,9.932e-05,2]
[360975778,1747176614814,-500.0,9.932e-05,2]
[360975779,1747176614856,-500.0,9.932e-05,2]
[360975780,1747176614899,-500.0,9.932e-05,2]
[360975781,1747176614943,-500.0,9.932e-05,2]
[360975782,1747176614984,-500.0,9.932e-05,2]
[360975783,1747176615028,-500.0,9.932e-05,2]
[360975784,1747176615070,-500.0,9.932e-05,2]
[360975785,1747176615110,-500.0,9.932e-05,2]
[360975786,1747176615155,-500.0,9.932e-05,2]
[360975787,1747176615200,-500.0,9.932e-05,2]
[360975788,1747176615242,-500.0,9.932e-05,2]
[360975789,1747176615284,-500.0,9.932e-05,2]
[360975790,1747176615323,-500.0,9.932e-05,2]
[360975791,1747176615363,-500.0,9.932e-05,2]
[360975792,1747176615405,-500.0,9.932e-05,2]
[360975793,1747176615445,-350.0,9.932e-05,2]
[360975794,1747176615478,-200.0,9.933e-05,2]
[360975795,1747176615511,-1721.59472967,9.933e-05,2]
[360975796,1747176615791,-10000.0,9.933e-05,2]
[360975797,1747176616281,-10000.0,9.933e-05,2]
[360975798,1747176616351,-10000.0,9.933e-05,2]
[360975799,1747176617228,-10000.0,9.933e-05,2]
[360975800,1747176617278,-10000.0,9.933e-05,2]
[360975801,1747176617305,-10000.0,9.933e-05,2]
[360975802,1747176618050,-10000.0,9.933e-05,2]
[360975803,1747176618269,-10000.0,9.933e-05,2]
[360975804,1747176620630,-10000.0,9.933e-05,2]
[360975805,1747176620951,-7236.68643823,9.933e-05,2]
[360975806,1747176620974,-2763.31356177,9.933e-05,2]
[360975807,1747176621385,-10000.0,9.933e-05,2]
[360975808,1747176622106,-10000.0,9.933e-05,2]
[360975809,1747176622372,-10000.0,9.933e-05,2]
[360975810,1747176622864,-10000.0,9.933e-05,2]
[360975811,1747176623537,-10000.0,9.933e-05,2]
[360975812,1747176624086,-10000.0,9.933e-05,2]
[360975813,1747176628339,-10000.0,9.933e-05,2]
[360975814,1747176628853,-10000.0,9.933e-05,2]
[360975815,1747176629156,-10000.0,9.933e-05,2]
[360975816,1747176629786,-10000.0,9.933e-05,2]
[360975817,1747176630576,-10000.0,9.933e-05,2]
[360975818,1747176631113,-109.18643823,9.933e-05,2]
[360975819,1747176631137,-9890.81356177,9.933e-05,2]
[360975820,1747176631906,-9563.03643823,9.933e-05,2]
[360975821,1747176631930,-200.0,9.935e-05,2]
[360975822,1747176631953,-200.0,9.936e-05,2]
[360975823,1747176631976,-36.96356177,9.939e-05,2]
[360975829,1747176632244,-3130.47716,9.939e-05,2]
[360975830,1747176632290,-149.79834804,9.939e-05,2]
[360975831,1747176632300,-152.0,9.943e-05,2]
[360975832,1747176632309,-750.24,9.963e-05,2]
[360975833,1747176632319,-822.41,9.971e-05,2]
[360975834,1747176632329,-1768.86,9.977e-05,2]
[360975835,1747176632338,-2609.29,9.98e-05,2]
[360975836,1747176632347,-450.0,0.0001,2]
[360975837,1747176632356,-300.65973278,0.00010293,2]
[360975838,1747176632366,-207.4,0.0001044,2]
[360975839,1747176632375,-151.0,0.00010854,2]
[360975840,1747176632385,-668.65185757,0.00010854,2]
[360975841,1747176632399,-287.61899177,0.00010854,2]
[360975842,1747176632411,-37857.30297144,0.00010861,2]
[360975843,1747176632420,-421.83861526,0.00010862,2]
[360975844,1747176632430,-227.2891221,0.00010863,2]
[360975845,1747176632440,-160.56942378,0.00010863,2]
[360975846,1747176632450,-157.24651105,0.0001087,2]
[360975847,1747176632460,-161.28003003,0.000109,2]
[360975848,1747176632470,-5029.83550805,0.000109,2]
[360975849,1747176632479,-470.66907991,0.00010919,2]
[360975850,1747176632489,-1200.0,0.00010924,2]
[360975851,1747176632499,-150.0,0.00010925,2]
[360975852,1747176632508,-250.0,0.00010925,2]
[360975853,1747176632518,-200.0,0.00010925,2]
[360975854,1747176632528,-250.0,0.00010926,2]
[360975855,1747176632537,-250.0,0.00010929,2]
[360975856,1747176632546,-200.0,0.00010929,2]
[360975857,1747176632556,-1824.377,0.00010944,2]
[360975858,1747176632566,-151.5909245,0.00010944,2]
[360975859,1747176632575,-25723.0,0.00010959,2]
[360975860,1747176632585,-190.98351325,0.0001096,2]
[360975861,1747176632594,-400.0,0.0001096,2]
[360975862,1747176632604,-400.0,0.0001096,2]
[360975863,1747176632613,-400.0,0.0001096,2]
[360975864,1747176632622,-400.0,0.0001096,2]
[360975866,1747176632632,-596.32,0.0001096,2]
[360975868,1747176632641,-860.85,0.0001096,2]
[360975870,1747176632651,-400.0,0.00010961,2]
[360975872,1747176632661,-965.62,0.00010961,2]
[360975873,1747176632671,-400.0,0.00010961,2]
[360975875,1747176632680,-400.0,0.00010961,2]
[360975878,1747176632691,-441.35,0.00010961,2]
[360975880,1747176632700,-400.0,0.00010961,2]
[360975881,1747176632710,-400.0,0.00010961,2]
[360975882,1747176632720,-400.0,0.00010961,2]
[360975883,1747176632729,-400.0,0.00010961,2]
[360975884,1747176632739,-400.0,0.00010961,2]
[360975885,1747176632748,-400.0,0.00010961,2]
[360975886,1747176632757,-400.0,0.00010961,2]
[360975887,1747176632767,-400.0,0.00010961,2]
[360975888,1747176632776,-400.0,0.00010961,2]
[360975889,1747176632785,-400.0,0.00010961,2]
[360975890,1747176632794,-400.0,0.00010961,2]
[360975891,1747176632803,-400.0,0.00010961,2]
[360975892,1747176632813,-1078.24,0.00010961,2]
[360975893,1747176632822,-400.0,0.00010961,2]
[360975894,1747176632832,-400.0,0.00010961,2]
[360975895,1747176632842,-616.0,0.00010961,2]
[360975896,1747176632851,-490.33816886,0.00010961,2]
[360975897,1747176632861,-505.36,0.00010961,2]
[360975898,1747176632870,-416.50137515,0.00010961,2]
[360975899,1747176632880,-1089.91,0.00010961,2]
[360975900,1747176632889,-400.0,0.00010961,2]
[360975901,1747176632898,-551.06,0.00010961,2]
[360975902,1747176632908,-400.0,0.00010961,2]
[360975903,1747176632918,-495.82,0.00010961,2]
[360975904,1747176632927,-429.65,0.00010961,2]
[360975905,1747176632937,-450.0,0.00010961,2]
[360975906,1747176632948,-400.0,0.00010961,2]
[360975907,1747176632958,-400.0,0.00010961,2]
[360975908,1747176632968,-400.0,0.00010961,2]
[360975909,1747176632978,-879.98,0.00010961,2]
[360975910,1747176632988,-400.0,0.00010961,2]
[360975911,1747176632997,-400.0,0.00010961,2]
[360975912,1747176633006,-400.0,0.00010961,2]
[360975913,1747176633016,-400.0,0.00010961,2]
[360975914,1747176633027,-424.75,0.00010961,2]
[360975915,1747176633037,-400.0,0.00010961,2]
[360975916,1747176633046,-573.18,0.00010961,2]
[360975917,1747176633056,-648.64,0.00010961,2]
[360975918,1747176633066,-967.42,0.00010961,2]
[360975919,1747176633075,-1630.1,0.00010961,2]
[360975920,1747176633084,-400.0,0.00010961,2]
[360975921,1747176633094,-400.0,0.00010961,2]
[360975922,1747176633103,-400.0,0.00010961,2]
[360975923,1747176633113,-400.0,0.00010961,2]
[360975924,1747176633122,-400.0,0.00010961,2]
[360975925,1747176633132,-400.0,0.00010961,2]
[360975926,1747176633141,-400.0,0.00010961,2]
[360975927,1747176633150,-400.0,0.00010961,2]
[360975928,1747176633162,-1040.15,0.00010961,2]
[360975929,1747176633171,-400.0,0.00010961,2]
[360975930,1747176633181,-401.05,0.00010961,2]
[360975931,1747176633190,-1247.88,0.00010961,2]
[360975932,1747176633200,-400.0,0.00010961,2]
[360975933,1747176633210,-1038.58,0.00010961,2]
[360975934,1747176633219,-1471.92,0.00010961,2]
[360975935,1747176633229,-400.0,0.00010961,2]
[360975936,1747176633238,-407.97,0.00010961,2]
[360975937,1747176633248,-400.0,0.00010961,2]
[360975938,1747176633257,-548.77,0.00010961,2]
[360975939,1747176633267,-760.67,0.00010961,2]
[360975940,1747176633276,-49.38085997,0.00010961,2]
[360975941,1747176633290,-350.61914003,0.00010961,2]
[360975942,1747176633299,-429.39,0.00010961,2]
[360975943,1747176633309,-473.65,0.00010961,2]
[360975944,1747176633318,-492.73,0.00010961,2]
[360975945,1747176633328,-979.14,0.00010961,2]
[360975946,1747176633337,-400.0,0.00010961,2]
[360975947,1747176633347,-1615.92,0.00010961,2]
[360975948,1747176633357,-973.47,0.00010961,2]
[360975949,1747176633366,-949.39,0.00010961,2]
[360975950,1747176633377,-453.01,0.00010961,2]
[360975951,1747176633386,-411.14,0.00010961,2]
[360975952,1747176633396,-1813.23,0.00010961,2]
[360975953,1747176633406,-1629.68,0.00010961,2]
[360975954,1747176633418,-1138.29,0.00010961,2]
[360975955,1747176633429,-758.42,0.00010961,2]
[360975956,1747176633440,-400.0,0.00010961,2]
[360975957,1747176633453,-1124.23,0.00010961,2]
[360975958,1747176633463,-1862.15,0.00010961,2]
[360975959,1747176633473,-488.41,0.00010961,2]
[360975960,1747176633484,-400.0,0.00010961,2]
[360975961,1747176633493,-400.0,0.00010961,2]
[360975962,1747176633503,-906.2,0.00010961,2]
[360975963,1747176633512,-1084.51,0.00010961,2]
[360975964,1747176633521,-2006.2,0.00010961,2]
[360975965,1747176633532,-400.0,0.00010961,2]
[360975966,1747176633542,-1155.76,0.00010961,2]
[360975967,1747176633551,-400.0,0.00010961,2]
[360975968,1747176633561,-988.99,0.00010961,2]
[360975969,1747176633572,-734.17,0.00010961,2]
[360975970,1747176633582,-514.6,0.00010961,2]
[360975971,1747176633592,-620.84,0.00010961,2]
[360975972,1747176633602,-1214.59,0.00010961,2]
[360975973,1747176633612,-400.0,0.00010961,2]
[360975974,1747176633621,-1646.63,0.00010961,2]
[360975975,1747176633631,-650.55,0.00010961,2]
[360975976,1747176633642,-400.0,0.00010961,2]
[360975977,1747176633652,-400.0,0.00010961,2]
[360975978,1747176633662,-400.0,0.00010961,2]
[360975979,1747176633672,-1278.29,0.00010961,2]
[360975980,1747176633683,-931.34,0.00010961,2]
[360975981,1747176633693,-487.91,0.00010961,2]
[360975982,1747176633703,-385.68822921,0.00010961,2]
[360975983,1747176633712,-400.0,0.00010961,2]
[360975984,1747176633721,-402.64,0.00010961,2]
[360975985,1747176633731,-7058.66,0.00010961,2]
[360975986,1747176633741,-400.0,0.00010961,2]
[360975987,1747176633750,-751.93,0.00010961,2]
[360975988,1747176633760,-400.0,0.00010961,2]
[360975989,1747176633770,-860.3,0.00010961,2]
[360975990,1747176633780,-2023.92,0.00010961,2]
[360975991,1747176633789,-400.0,0.00010961,2]
[360975992,1747176633799,-400.0,0.00010961,2]
[360975993,1747176633809,-550.06,0.00010961,2]
[360975994,1747176633818,-400.0,0.00010961,2]
[360975995,1747176633828,-400.0,0.00010961,2]
[360975996,1747176633838,-400.0,0.00010961,2]
[360975997,1747176633848,-1987.32503044,0.00010961,2]
[360975998,1747176633861,-24.78496956,0.00010961,2]
[360975999,1747176633872,-513.1,0.00010961,2]
[360976000,1747176633882,-661.58463374,0.00010961,2]
[360976001,1747176633894,-1222.38034376,0.00010961,2]
[360976002,1747176633913,-821.6950225,0.00010961,2]
[360976003,1747176633922,-400.0,0.00010961,2]
[360976004,1747176633933,-453.01,0.00010961,2]
[360976005,1747176634162,-149.5899498,0.00010961,2]
[360976006,1747176634175,-250.4100502,0.00010961,2]
[360976007,1747176634184,-683.9199498,0.00010961,2]
[360976008,1747176634196,-143.2100502,0.00010961,2]
[360976009,1747176634206,-400.0,0.00010961,2]
[360976010,1747176634216,-971.07,0.00010961,2]
[360976011,1747176634226,-400.0,0.00010961,2]
[360976012,1747176634236,-400.0,0.00010961,2]
[360976013,1747176634246,-400.0,0.00010961,2]
[360976014,1747176634255,-334.6842323,0.00010961,2]
[360976015,1747176638080,-400.0,0.0001096,2]
[360976016,1747176638090,-65.3157677,0.00010961,2]
[360976017,1747176638100,-247.44,0.00010961,2]
[360976018,1747176638110,-428.26134891,0.00010961,2]
[360976019,1747176638119,-529.63493423,0.00010961,2]
[360976020,1747176638129,-400.0,0.00010961,2]
[360976021,1747176638139,-537.23,0.00010961,2]
[360976022,1747176638149,-151.369485,0.00010961,2]
[360976023,1747176638158,-1448.82,0.00010961,2]
[360976024,1747176638170,-438.47,0.00010961,2]
[360976025,1747176638182,-400.0,0.00010961,2]
[360976026,1747176638193,-400.0,0.00010961,2]
[360976027,1747176638204,-1273.67,0.00010961,2]
[360976028,1747176638213,-449.29,0.00010961,2]
[360976029,1747176638223,-400.0,0.00010961,2]
[360976030,1747176638233,-349.11042495,0.00010961,2]
[360976031,1747176638260,-229.71957505,0.00010961,2]
[360976032,1747176638270,-151.0,0.00010961,2]
[360976033,1747176638279,-151.0,0.00010961,2]
[360976034,1747176638289,-559.44,0.00010961,2]
[360976035,1747176638298,-1598.020913,0.00010961,2]
[360976036,1747176638308,-159.144313,0.00010961,2]
[360976037,1747176638318,-400.0,0.00010961,2]
[360976038,1747176638328,-400.0,0.00010961,2]
[360976039,1747176638337,-400.0,0.00010961,2]
[360976040,1747176638347,-2109.65,0.00010961,2]
[360976041,1747176638357,-400.0,0.00010961,2]
[360976042,1747176638367,-400.0,0.00010961,2]
[360976043,1747176638376,-151.0,0.00010961,2]
[360976045,1747176638386,-151.0,0.00010961,2]
[360976046,1747176638395,-400.0,0.00010961,2]
[360976047,1747176638405,-151.0,0.00010961,2]
[360976048,1747176638418,-151.0,0.00010961,2]
[360976049,1747176638428,-1648.23,0.00010961,2]
[360976050,1747176638438,-400.0,0.00010961,2]
[360976051,1747176638447,-400.0,0.00010961,2]
[360976052,1747176638457,-400.0,0.00010961,2]
[360976053,1747176638467,-304.984101,0.00010961,2]
[360976054,1747176638476,-1474.51,0.00010961,2]
[360976055,1747176638487,-624.06,0.00010961,2]
[360976056,1747176638496,-594.65130314,0.00010961,2]
[360976057,1747176638506,-400.0,0.00010961,2]
[360976058,1747176638516,-400.0,0.00010961,2]
[360976059,1747176638526,-26165.82989481,0.00010962,2]
[360976060,1747176638541,-3732.0416319,0.00010962,2]
[360976061,1747176638558,-3365.73286742,0.00010962,2]
[360976062,1747176638570,-1042.82955653,0.00010962,2]
[360976065,1747176640335,-151.5909246,0.00010944,2]
[360976066,1747176640345,-400.0,0.00010961,2]
[360976067,1747176640355,-658.10408537,0.00010962,2]
[360976068,1747176640366,-925.2436,0.00010962,2]
[360976069,1747176640378,-1043.5,0.00010962,2]
[360976070,1747176640609,-0.00989886,0.00010962,2]
[360976073,1747176641253,-980686.06627893,0.00010962,2]
[360976074,1747176641262,-400.0,0.00010962,2]
[360976075,1747176641272,-808.84,0.00010962,2]
[360976076,1747176641281,-400.0,0.00010962,2]
[360976077,1747176641291,-400.0,0.00010962,2]
[360976078,1747176641300,-400.0,0.00010962,2]
[360976079,1747176641310,-839.62,0.00010962,2]
[360976080,1747176641319,-1216.66,0.00010962,2]
[360976081,1747176641328,-420.03,0.00010962,2]
[360976082,1747176641337,-151.0,0.00010962,2]
[360976083,1747176641347,-151.0,0.00010962,2]
[360976084,1747176641356,-481.58,0.00010962,2]
[360976085,1747176641366,-151.0,0.00010962,2]
[360976086,1747176641375,-1359.58,0.00010962,2]
[360976087,1747176641385,-400.0,0.00010962,2]
[360976088,1747176641395,-1000.0,0.00010962,2]
[360976089,1747176641404,-151.0,0.00010962,2]
[360976090,1747176641416,-400.0,0.00010962,2]
[360976091,1747176641426,-485.6,0.00010962,2]
[360976092,1747176641435,-592.76,0.00010962,2]
[360976093,1747176641446,-464.66,0.00010962,2]
[360976094,1747176641455,-400.0,0.00010962,2]
[360976095,1747176641466,-475.54,0.00010962,2]
[360976096,1747176641475,-400.0,0.00010962,2]
[360976097,1747176641486,-400.0,0.00010962,2]
[360976098,1747176641496,-598.93,0.00010962,2]
[360976099,1747176641506,-423.62,0.00010962,2]
[360976100,1747176641517,-400.0,0.00010962,2]
[360976101,1747176641527,-721.54,0.00010962,2]
[360976102,1747176641536,-400.0,0.00010962,2]
[360976103,1747176641546,-400.0,0.00010962,2]
[360976104,1747176641556,-400.0,0.00010962,2]
[360976105,1747176641566,-427.75,0.00010962,2]
[360976106,1747176641577,-1170.41,0.00010962,2]
[360976107,1747176641587,-151.0,0.00010962,2]
[360976108,1747176641597,-2478.06,0.00010962,2]
[360976109,1747176641607,-244.173136,0.00010962,2]
[360976110,1747176641616,-400.0,0.00010962,2]
[360976111,1747176641626,-400.0,0.00010962,2]
[360976112,1747176641635,-244.173136,0.00010962,2]
[360976113,1747176641645,-400.0,0.00010962,2]
[360976114,1747176641654,-400.0,0.00010962,2]
[360976115,1747176641665,-400.0,0.00010962,2]
[360976116,1747176641675,-400.0,0.00010962,2]
[360976117,1747176641684,-151.518452,0.00010962,2]
[360976118,1747176641694,-659.72,0.00010962,2]
[360976119,1747176641703,-558.31,0.00010962,2]
[360976120,1747176641713,-400.0,0.00010962,2]
[360976121,1747176641723,-400.0,0.00010962,2]
[360976122,1747176641733,-400.0,0.00010962,2]
[360976123,1747176641743,-2946.22,0.00010962,2]
[360976124,1747176641753,-635.713762,0.00010962,2]
[360976125,1747176641763,-635.713762,0.00010962,2]
[360976126,1747176641773,-1268.95,0.00010962,2]
[360976127,1747176641783,-433.03,0.00010962,2]
[360976128,1747176641792,-542.75,0.00010962,2]
[360976129,1747176641801,-13023.39,0.00010962,2]
[360976130,1747176641810,-400.0,0.00010962,2]
[360976131,1747176641819,-973.36,0.00010962,2]
[360976132,1747176641828,-151.0,0.00010962,2]
[360976133,1747176641837,-4296.52,0.00010962,2]
[360976134,1747176641845,-3106.97,0.00010962,2]
[360976135,1747176641854,-151.0,0.00010962,2]
[360976136,1747176641864,-423.21,0.00010962,2]
[360976137,1747176641873,-453.72,0.00010962,2]
[360976138,1747176641883,-7795.98,0.00010962,2]
[360976139,1747176641892,-372.683801,0.00010962,2]
[360976140,1747176641902,-1365.63,0.00010962,2]
[360976141,1747176641912,-372.683801,0.00010962,2]
[360976142,1747176641921,-400.0,0.00010962,2]
[360976143,1747176641930,-151.0,0.00010962,2]
[360976144,1747176641940,-400.0,0.00010962,2]
[360976145,1747176641949,-2443.32,0.00010962,2]
[360976146,1747176641958,-151.0,0.00010962,2]
[360976147,1747176641967,-817.34,0.00010962,2]
[360976148,1747176641977,-400.0,0.00010962,2]
[360976149,1747176641986,-526.51,0.00010962,2]
[360976150,1747176641995,-552.53,0.00010962,2]
[360976151,1747176642005,-151.0,0.00010962,2]
[360976152,1747176642015,-635.53,0.00010962,2]
[360976153,1747176642024,-616.39,0.00010962,2]
[360976154,1747176642034,-151.0,0.00010962,2]
[360976155,1747176642043,-202.854913,0.00010962,2]
[360976156,1747176642052,-400.0,0.00010962,2]
[360976157,1747176642062,-400.0,0.00010962,2]
[360976158,1747176642072,-1561.81,0.00010962,2]
[360976159,1747176642081,-400.0,0.00010962,2]
[360976160,1747176642092,-162.412825,0.00010962,2]
[360976161,1747176642102,-400.0,0.00010962,2]
[360976162,1747176642111,-789.66,0.00010962,2]
[360976163,1747176642121,-441.33,0.00010962,2]
[360976164,1747176642131,-502.0,0.00010962,2]
[360976165,1747176642140,-180.149056,0.00010963,2]
[360976166,1747176642150,-162.190272,0.00010963,2]
[360976167,1747176642160,-368.273227,0.00010963,2]
[360976168,1747176642170,-151.0,0.00010963,2]